{"text_format":"1","workbook":"xlsx","n_sheets":6,"sheets":["Invulinstructie","Regeling","Gegevens aanbieder","Afsprakenblad","Berekening garantie","Cumulatieven"],"not_rendered":{"charts":0,"images":1,"macros":1,"external_links":0,"defined_names":6,"comments":0,"pivot_tables":0},"unopened":[],"bounds":{"document_bytes":16777216,"sheet_cells":100000,"rows_first":2000,"rows_last":500,"rows_between":2000,"halvings":0,"cell_chars":16384,"cell_head_chars":4096},"cells_cut":0,"cells_raw":0,"read":"whole","date_system":"1900"}

{"sheet":"Invulinstructie","index":0,"n_rows":40,"n_cols":3,"rows_kept":40,"cut":false,"hidden":false,"merged":[[11,0,11,8],[12,0,12,8],[13,0,13,8],[14,0,14,8],[10,0,10,8],[3,0,3,1],[3,2,3,8],[5,0,5,1],[5,2,5,8],[7,0,7,8],[39,0,39,8],[36,0,36,8],[37,0,37,8],[38,0,38,8],[15,0,15,8],[16,0,16,8],[17,0,17,8],[18,0,18,8],[19,0,19,8],[35,0,35,8],[32,0,32,8],[33,0,33,8],[22,0,22,8],[1,0,1,8],[2,0,2,8],[34,0,34,8],[23,0,23,8],[24,0,24,8],[25,0,25,8],[26,0,26,8],[27,0,27,8],[28,0,28,8],[29,0,29,8],[30,0,30,8],[31,0,31,8],[20,0,20,8],[21,0,21,8],[8,0,8,8],[9,0,9,8]]}
[]
["Invulinstructie"]
["Deze format bestaat uit aantal bladen waarop gegevens moeten worden ingevuld en velden waarin met de ingevulde gegevens gerekend wordt. De legenda is als volgt:"]
["Invoerveld",null,"In een veld zoals dit mag of kan er een waarde worden ingevuld."]
[]
[1000,null,"Dit is een waarde die is berekend door het format en kan niet worden gewijzigd."]
[]
["Verder kent deze format de volgende werkbladen:"]
["Regeling"]
["Ter informatie is hier de volledige tekst opgenomen van de regeling “Uitwerking continuïteit van financiering Jeugdwet en MO – VNG en Rijk."]
[]
["Gegevens aanbieder"]
["Vul in de linker kolom de gegevens van de zorgaanbieder volledig in."]
["De rubriek versiehistorie kan worden gebruikt om opvolgende versies van het format door middel van het toevoegen van een nieuwe versie van de berekening en het geven van een toelichting op de actuele versie te onderscheiden van eventuele eerdere versies. Dit kan zich bijvoorbeeld voordoen bij nieuwe of gewijzigde afspraken tussen gemeente en zorgaanbieder, externe ontwikkelingen en/of voortschrijdend inzicht."]
[]
["Afsprakenblad"]
["Versienummer en datum worden overgenomen uit de het tabblad Gegevens aanbieder."]
["1. Initiële doorrekening omzetgarantie"]
["De eerste rubriek “Initiële doorrekening omzetgarantie” biedt twee elkaar uitsluitende mogelijkheden. Als sprake is van een omzetafspraak, dan wordt hiermee verder gerekend in dit model. Gegevens die eventueel zijn ingevuld onder de kop “Indien geen plafond is afgesproken”, worden in dat geval genegeerd."]
["Het eerste alternatief is het invullen van de velden onder “Omzetafspraak 2020” als sprake is van een omzetafspraak tussen gemeente en zorgaanbieder. Eventuele “Vaste componenten” die, onafhankelijk van de productie, op een andere wijze (reeds) worden vergoed en die deel uitmaken van de omzetafspraak kunnen in het betreffende veld worden ingevuld."]
["Het tweede alternatief is het invullen van de velden “Indien geen omzetafspraak is afgesproken”. Zorg er in dat geval voor dat de velden van het “Omzetafspraak 2020” leeg zijn."]
["2. Aanvullende afspraken omzetgarantie"]
["Als tussen gemeente en zorgaanbieder voor 2020 specifieke afspraken over de garantieomzet zijn gemaakt, dan kan het bedrag in het veld “Specifieke afspraken 2020” worden ingevuld. Dit kan zowel een positief als negatief (gebruik hiervoor een minteken) getal zijn en verhoogt of verlaagt de “Basis voor berekening garantieomzet” met dit bedrag."]
["Zonder (optionele) wijzigingen in de percentages voor “Aanpassing seizoenspatroon” berekent het format de gegarandeerde omzet voor de maanden maart tot en met juni 2020 per maand door de “Basis voor berekening garantieomzet” te delen door 12 (8,3%)."]
["Als sprake is van een seizoenspatroon dat hiervan afwijkt, kan het afwijkende percentage worden ingevuld in het betreffende veld. Let op: het bedoelde percentage heeft betrekking op de jaaromzet, niet op de maandomzet. Dit betekent dat als in een van de maanden niet de initieel berekende 8,3% (1/12) van de jaaromzet wordt geleverd maar bijvoorbeeld 10%, vul dan in de betreffende maand dat percentage in. De overige percentages blijven dan ongewijzigd. Elke toepasselijke procentuele verdeling van de productie waarover tussen gemeente en zorgaanbieder afspraken zijn gemaakt kan op deze manier worden verwerkt."]
["In het laatste te vullen veld kunnen de hiervoor beschreven afwijkende percentages en de afspraken die daarover tussen gemeente en zorgaanbieder zijn gemaakt, desgewenst worden gememoreerd en/of nader toegelicht."]
[]
["Berekenen garantie"]
["De berekening van de garantieomzet wordt per maand (van maart tot en met juni) uitgevoerd op basis van de gegevens die zijn overgenomen uit het “Afsprakenblad”."]
["De gegevens over de declarabele productie wordt voor elk van maanden ingevuld."]
["Berekening garantieomzet maart (idem voor april t/m juni)"]
["Vul in de eerste rij (grijs) de productcode, productomschrijving, afgesproken prijs en het daadwerkelijk geleverde aantal geleverde (gedeclareerde of te declareren) producten over de betreffende maand (voor rekening  van de gemeente die het betreft) in."]
["Als ook andere producten zijn geleverd, klik dan op de button “Voeg product toe” om een nieuwe regel toe te voegen. Vul ook deze regel, geheel naar analogie van de eerste regel, in. Enzovoort."]
["De bedragen in de velden “Declarabele variabele maandomzet <maand> 2020” en “Te factureren aanvullende garantieomzet <maand> 2020” worden automatisch opnieuw berekend."]
["Herhaal bovenstaande bewerkingen voor de maanden april tot en met juni. Let er op dat de maanden waarover de productie wordt gerapporteerd kloppen. Zo kan in de maanden april tot en met juni productie worden vermeld van de maand die het betreft, maar ook de productie over voorgaande maanden als dat van toepassing is."]
["\nFacturen vanaf juli die betrekking hebben op de maanden maart, arpil, mei of juni moeten worden ingevuld in de tabel \"Verantwoording declarabele productie juni\"."]
[]
["Cumulatieven"]
["In dit tabblad wordt een overzicht gepresenteerd met een berekening van alle totalen. Hier hoeft (kan) niets te worden ingevuld."]
["De garantieregeling is gebaseerd op een maandelijkse berekening. De te onvangen garantieomzet per maand wordt berekend uit de maximaal gegarandeerde  omzet per maand verminderd met de gerealiseerde omzet per maand."]

{"sheet":"Regeling","index":1,"n_rows":200,"n_cols":1,"rows_kept":200,"cut":false,"hidden":false,"merged":[]}
[]
["Regeling"]
["Uitwerking continuïteit van financiering Jeugdwet en WMO – VNG en Rijk"]
["Dit format is bedoeld voor de inspanningsgerichte en outputgerichte uitvoeringsvarianten."]
[]
["VNG en het Rijk hebben afspraken gemaakt over het bieden van financiële"]
["zekerheid en ruimte aan zorgorganisaties en professionals. Dit is nodig om"]
["zorgorganisaties en professionals, in deze uitzonderlijke tijden, een uiterste"]
["inspanning te kunnen laten verrichten om het coronavirus maximaal te controleren,"]
["kwetsbare mensen te beschermen en goede zorg te verlenen voor diegenen die dit"]
["nodig hebben."]
[]
["Deze uitwerking gaat over de volgende passage in de afspraken tussen Rijk en"]
["VNG:"]
[]
["Door vraaguitval of verminderde inzetbaarheid van personeel (door verhoogd"]
["ziekteverzuim) zal de omvang van zorg en ondersteuning tijdelijk feitelijk afwijken"]
["van de normale situatie. Het is nu van belang dat de financiering van de omzet"]
["onverminderd plaatsvindt, zoals die contractueel overeengekomen was dan wel een"]
["zo goed mogelijke inschatting daarvan. Met als doel acute liquiditeitsproblemen te"]
["voorkomen en de gevolgen van de coronacrisis voor de financiële positie in 2020"]
["van deze zorgaanbieders te neutraliseren. Van zorgaanbieders wordt verwacht dat"]
["zij zich inspannen om de professionele inzet zo goed mogelijk te benutten (binnen"]
["hun organisatie dan wel op andere plaatsen waar de acute behoeften bestaat), en"]
["daarmee de eventuele omzetdaling te beperken. Gemeenten zullen dat bevorderen"]
["door daarover actief in gesprek te gaan met de aanbieders."]
[]
["Opmerkingen vooraf:"]
["1. Deze uitwerking is een richtinggevende uitwerking van de bestuurlijke"]
["afspraken tussen Rijk en VNG op het onderdeel continuïteit van financiering."]
["2. Uitgangspunt is dat de afspraken gericht zijn op het voorkomen van acute"]
["liquiditeitsproblemen en het neutraliseren van de effecten van de coronacrisis"]
["voor de financiële positie van zorgaanbieders. Gemeenten maken afspraken"]
["met aanbieders over het zoveel mogelijk doorleveren van zorg."]
["Dit laatste bovenal ten behoeve van continuïteit van de zorg voor cliënten."]
["Daarnaast draagt dit bij aan het zoveel mogelijk beperken van de omzetderving"]
["ten tijde van de coronacrisis en uitstel van noodzakelijke zorg tot na de"]
["coronacrisis."]
["3. Deze uitwerking gaat niet over vervoer. Daarover is een aparte QenA via de"]
["VNG gepubliceerd en dit onderwerp wordt in een aparte landelijke werkgroep"]
["verder uitgewerkt."]
["4. Deze uitwerking gaat over het onderdeel continuïteit van financiering, niet over"]
["meerkosten, de uitgestelde vraag en de rechtmatigheid van alternatieve"]
["levering. Deze onderwerpen worden parallel en in samenhang uitgewerkt, en"]
["zouden idealiter ook gelijktijdig gepubliceerd moeten worden. Dit laatste is"]
["vanwege de coronacrisis in de tijd niet haalbaar en leidt onvermijdelijk tot"]
["continuïteitsproblemen van zorgaanbieders. In de uitwerking van de andere"]
["onderwerpen zal verbinding worden gelegd met het onderdeel continuïteit van"]
["financiering."]
["Samenhang tussen de verschillende uitwerkingen is evident noodzakelijk ter"]
["voorkoming van dubbele financiering. Het bieden van gegarandeerde omzet ten"]
["tijde van de coronacrisis is als eerste uitwerking noodzakelijk, maar enkel"]
["houdbaar wanneer dit ultimo 2020 geen van de betrokken partijen financieel"]
["voordeel oplevert."]
["5. Deze uitwerking geldt tot in ieder geval 1 juli, dus voor het garanderen van de"]
["maandomzet van de maanden maart, april, mei en juni 2020."]
["Kern van de afspraak is dat financiering van de omzet wordt doorgezet op het niveau van"]
["voor de corona crisis. Op deze wijze zijn aanbieders niet gedwongen personeel te ontslaan"]
["en blijven personeel en expertise tijdens de coronacrisis zoveel mogelijk van waarde en"]
["ook na de crisis beschikbaar. Op deze wijze zijn aanbieders ervan verzekerd dat de kosten"]
["die zij maken vergoed blijven. Verantwoording na afloop zal plaatsvinden op basis van de"]
["feitelijk gerealiseerde kosten die een aanbieder heeft gemaakt. Als de gerealiseerde"]
["kosten aanzienlijk afwijken van de financiering van de omzet moet daarover worden"]
["afgerekend."]
[]
["De uitwerking van de afspraak roept de volgende uitwerkingsvragen op:"]
["1. Hoe bepaal je het omzetniveau waarop je blijft doorbetalen?"]
["2. In welke mate vindt na afloop de verantwoording plaats?"]
["3. Hoe pakt dit uit voor de verschillende uitvoeringsvarianten, voor LTA en voor"]
["hoofd- en onderaannemerschap?"]
["4. Moeten gemeenten ook zicht houden op de liquiditeit van aanbieders?"]
["5. Geldt dit voor alle aanbieders?"]
[]
["1. Hoe bepaal je het omzetniveau waarop je blijft doorbetalen?"]
["Het omzetniveau bepalen we aan de hand van het maandgemiddelde van de omzet van"]
["die aanbieder voor geheel 2019. Reden om te kiezen voor een maandgemiddelde van het"]
["hele jaar, is dat een maandgemiddelde op basis van een beperkt aantal maanden een"]
["vertekend beeld geeft. Daar waar het maandgemiddelde op basis van een jaaromzet een"]
["atypische uitkomst heeft, zullen gemeenten en aanbieder gezamenlijk moeten bepalen"]
["welke periode representatief is voor de maandomzet (bijvoorbeeld als een aanbieder maar"]
["in een deel van 2019 geleverd heeft)."]
[]
["Veel aanbieders hebben al productiegegevens over 2019 aangeleverd, en op basis"]
["daarvan is het maandgemiddelde goed te bepalen."]
["Vervolgens is het belangrijk om rekening te houden met de stijging van lonen en prijzen."]
["Daarom moet het maandgemiddelde bepaald worden op basis van de maandgemiddelde"]
["van de omzet 2019, en die aan te vullen met de in het contract voor 2020 toegepaste"]
["indexatie."]
[]
["De afspraken spreken over onverminderd doorbetalen. Dit betekent dus 100% van de"]
["gemiddelde maandomzet 2019 aangevuld met de indexatie zoals in het contract toegepast"]
["voor 2020."]
[]
["Indien met een aanbieder een omzetafspraak is gemaakt voor 2020, is de hoogte van die"]
["afspraak de gegarandeerde omzet."]
[]
["Uiteindelijk zal een maandomzet uit drie componenten opgebouwd zijn:"]
["1. Zorg die op reguliere wijze geleverd is (en die op de reguliere manier gedeclareerd"]
["wordt)."]
["2. Zorg die vanwege de coronamaatregelen op alternatieve wijze is geleverd (maar die"]
["zoveel mogelijk op reguliere manier gedeclareerd wordt)"]
["3. Vraaguitval cq minder levering van zorg (lumpsum omzetdaling)."]
[]
["Maandomzet zien we hierbij als het totaal van gegarandeerde omzet in een maand. Dit is"]
["niet hetzelfde als de hoeveelheid gedeclareerde zorg in een maand. Declaraties lopen, in"]
["de tijd, namelijk achter op de geleverde zorg. De inkomsten van aanbieders die niet"]
["bevoorschot worden, zullen in maart nog weinig tot geen daling laten zien. Vraaguitval in"]
["de maanden maart, april en mei, heeft met name invloed op de inkomsten in de maanden"]
["april, mei en juni. Bij het bepalen van de snelheid van de door te betalen omzet dient"]
["rekening gehouden te worden met de vertraging in declaraties."]
[]
["Gemeenten spreken met aanbieders de gegarandeerde omzet af. Aanbieders factureren"]
["maandelijks de gerealiseerde omzet (o.b.v. prestaties, inclusief prestaties in andere"]
["vorm). Vervolgens brengen ze het verschil tussen de gerealiseerde omzet en de door de"]
["gemeente berekende gegarandeerde omzet in rekening. De aanbestedingswet maakt het"]
["mogelijk om in deze onvoorziene omstandigheden (artikel 2.163e ) een wijziging in de"]
["bestaande bekostiging door te voeren."]
[]
["Tot slot. Streven is om een zo veel mogelijk zorg te kunnen blijven leveren in deze"]
["coronacrisis en daarmee te kunnen declareren. Dit is het best voor de continuïteit van"]
["zorg van cliënten. Dit is een expliciete opdracht aan aanbieders. Vanuit gemeenten is het"]
["belangrijk om dit te stimuleren."]
[]
["2. In welke mate vindt na afloop de verantwoording plaats?"]
["Op dit moment is continuïteit van financiering belangrijk. Aanbieders moeten er op kunnen"]
["rekenen dat de doorlopende kosten die ze maken, ook voor personeel dat nu geen zorg"]
["kan leveren, wordt vergoed."]
[]
["De werkelijke kosten die aanbieders hebben, zullen in deze periode niet precies op dit"]
["maandgemiddelde zitten. Enerzijds kunnen ze te maken hebben met extra kosten,"]
["anderzijds zullen er kosten zijn die ze niet maken. Ook kan het zijn dat personeel van"]
["instellingen elders is ingezet en elders declarabel bleek te zijn (misschien wel in"]
["ziekenhuizen o.i.d). De mate waarin personeel kon worden ingezet, binnen het sociaal"]
["domein of elders, kan binnen de coronaperiode per dag verschillen."]
[]
["Dit vraagt dat als coronacrisis voorbij is, aanbieders transparant zijn over de inzet van hun"]
["personeel in deze periode en over de kosten die ze gemaakt hebben. Alles moet er op"]
["gericht zijn dat professionals in de sector ook in deze periode zoveel mogelijk van waarde"]
["zijn. Als de gerealiseerde kosten aanzienlijk afwijken van de financiering van de omzet,"]
["moet daarvoor afgerekend worden. Er wordt hierbij gecorrigeerd voor de beperking van"]
["de doorlopende kosten die zorgaanbieders zelf hebben bewerkstelligd en er wordt"]
["rekening gehouden met wat onder de gebruikelijke omzet kan worden gerealiseerd. Inzet"]
["is immers dat de financiële gevolgen van de coronacrisis voor aanbieders in 2020 worden"]
["geneutraliseerd. De verdeling van de afrekening tussen gemeenten vindt plaats aan de"]
["hand van het aandeel van die gemeente in de gerealiseerde omzet."]
[]
["Voor aanbieders die voor veel gemeenten werken, is achteraf afrekenen behoorlijk"]
["ingrijpend, omdat kosten toegerekend moeten worden aan specifieke gemeenten of"]
["regio´s. Aanbieders zullen zelf goed zicht willen houden op de verhouding tussen de"]
["gegarandeerde omzet en de kosten die ze maken. Als ze zien dat de compensatie te hoog"]
["is, verzoeken we hen dringend bij gemeenten aan te geven dat de omzetgarantie verlaagd"]
["moet worden, zodat omzetgarantie en kosten met elkaar in balans blijven. Hierdoor"]
["kunnen aanbieders zelf een administratief belastende afrekening voorkomen."]
[]
["Het inzicht geven in de inzet van personeel in deze periode en de gemaakte kosten is"]
["onderdeel van de jaarverantwoording 2020. Om een aantal redenen:"]
["1. Dan kan beter rekening gehouden kan worden met uitloop van de coronacrisis"]
["door 2020 heen en eventuele kostenstijgingen (uitgestelde vraag) na afloop"]
["van de coronacrisis, waardoor kostendalingen en kostenstijgingen beter tegen"]
["elkaar af te wegen zijn."]
["2. De administratieve last wordt beperkt, omdat er elk jaar een"]
["jaarverantwoording plaatsvindt."]
[]
["3. Hoe pakt dit uit voor de verschillende uitvoeringsvarianten, voor LTA"]
["en voor hoofd- en onderaannemerschap?"]
["De consequentie voor de inspannings- en outputgerichte uitvoeringsvarianten:"]
["Outputgericht: omdat dit een bekostiging op clientniveau is, zal de daling van het aantal"]
["cliënten gevolgen hebben. Er moet dus met deze aanbieders een omzetafspraak gemaakt"]
["worden voor het onderdeel vraaguitval, aanvullend op de zorg die geleverd wordt of die op"]
["een andere manier wordt geleverd."]
["Inspanningsgericht: omdat dit een bekostiging op clientniveau is, zal de daling van het"]
["aantal cliënten en de daling van de intensiteit per client gevolgen hebben. Er moet dus"]
["met deze aanbieders een omzetafspraak gemaakt worden voor het onderdeel vraaguitval,"]
["aanvullend op de zorg die geleverd wordt of die op een andere manier wordt geleverd."]
[]
["VNG werkt de consequenties voor de landelijke inkoop (LTA) verder uit, en zal hierover"]
["gemeenten via de Nieuwsbrief van het LTA informeren."]
[]
["M.b.t. hoofd- en onderaannemerschap is lijn dat dit gaat over hoofdaannemers,"]
["hoofdaannemers vertalen dit door aan onderaannemers."]
[]
["4. Moeten gemeenten ook zicht houden op de liquiditeit van aanbieders?"]
["Hiervoor geldt de werkwijze zoals voor corona. Voor Jeugd is afgesproken dat er"]
["accounthoudende regio’s zijn voor bovenregionale jeugdhulpaanbieders en GI’s. Zij zijn"]
["periodiek in gesprek met deze instellingen over de totale stand van zaken, eventueel kan"]
["in deze coronaperiode nog extra de thermometer erin worden gestoken. Daarnaast blijft"]
["de subsidieregeling ‘continuïteit cruciale jeugdhulp’ van de Jeugdautoriteit beschikbaar."]
[]
["5. Geldt dit voor alle aanbieders?"]
["Net als in de Zvw en Wlz geldt continuïteit van financiering voor alle gecontracteerde"]
["aanbieders (inclusief aanbieders of zorgverleners die via het pgb worden ingekocht). Dat"]
["is onderdeel van afspraken tussen Rijk en VNG. De VNG heeft aan de QenA’s al"]
["toegevoegd dat het gaat om aanbieders die op 13 maart 2020 een contract hadden. Een"]
["aantal regio’s heeft toetreding door het jaar heen, je wilt voorkomen dat nieuwe"]
["aanbieders toetreden om de vruchten te plukken van deze afspraken. Overigens is dit"]
["risico beperkt, omdat aangeraden wordt de omzet te bepalen aan de hand van omzet"]
["2019. Een nieuwe toetreder had geen omzet in 2019."]
[]
["Gemeenten hebben de ruimte om geen omzetgarantie te bieden voor aanbieders tegen"]
["wie een fraude-onderzoek loopt"]

{"sheet":"Gegevens aanbieder","index":2,"n_rows":19,"n_cols":5,"rows_kept":19,"cut":false,"hidden":false,"merged":[[1,1,1,6],[10,1,10,2],[3,1,3,6]]}
[]
[null,"Gegevens zorgaanbieder"]
[]
[null,"Versiehistorie"]
[null,"Versienr.","Auteur","Datum","Toelichting"]
[]
[]
[null,"Gemeente/contractpartij"]
[null,"Gemeente/contractpartij"]
[]
[null,"Gegevens zorgaanbieder"]
[null,"Naam"]
[null,"Plaats"]
[null,"KVK-nummer"]
[null,"AGB-code"]
[null,"Contactpersoon"]
[null,"Telefoonnummer - algemeen"]
[null,"Telefoonnummer - contactpersoon"]
[null,"Emailadres"]

{"sheet":"Afsprakenblad","index":3,"n_rows":38,"n_cols":16,"rows_kept":38,"cut":false,"hidden":false,"merged":[[6,0,6,15],[19,0,19,15],[36,0,36,15],[1,0,1,15],[34,1,34,13],[31,1,31,13],[24,8,24,14]]}
[]
["Afsprakenblad continuïteit van financiering WMO en Jeugdwet 2020"]
[null,"Geschikt voor inspannings- en outputgerichte bekostiging"]
["Versie",{"$f":"MAX(Versiebeheer[Versienr.])","v":0}]
["Datum",{"$f":"VLOOKUP(MAX(Versiebeheer[Versienr.]),Versiebeheer[#All],3)","v":{"$error":"#N/A"}}]
[]
["1. Initiele doorrekening omzetgarantie"]
[null,"Omzetafspraak 2020"]
[null,null,"Omzetafspraak afgesproken over 2020 (basisgarantie omzet)",null,null,null,null,null,null,null,null,null,null,null,null,0]
[null,null,"Vaste componenten meegenomen in deze omzetafspraak ",null,null,null,null,null,null,null,null,null,null,null,null,0]
[null,null,"Variabel deel omzetafspraak, berekende garantieomzet op jaarbasis 2020",null,null,null,null,null,null,null,null,null,null,null,null,{"$f":"P9-P10","v":0}]
[]
[null,"Indien geen omzetafspraak is afgesproken"]
[null,null,"Vastgestelde productieverantwoording 2019",null,null,null,null,null,null,null,null,null,null,null,null,0]
[null,null,"Vaste componenten als onderdeel van de productieverantwoording 2019",null,null,null,null,null,null,null,null,null,null,null,null,0]
[null,null,"Variabele productiecomponent voor 2019",null,null,null,null,null,null,null,null,null,null,null,null,{"$f":"P14-P15","v":0}]
[null,null,"In contract 2020 toegepaste compensatie voor prijspeil",null,null,null,null,null,null,null,null,null,null,null,null,0]
[null,null,"Berekende garantieomzet op jaarbasis 2020",null,null,null,null,null,null,null,null,null,null,null,null,{"$f":"P16*(1+P17)","v":0}]
[]
["2. Aanvullende afspraken omzetgarantie"]
[null,"Specifieke afspraken 2020, positief of negatief, over de garantieomzet",null,null,null,null,null,null,null,null,null,null,null,null,null,0]
[]
[null,"Basis voor berekening garantieomzet, op basis van variabele omzet en specifieke afspraken 2020",null,null,null,null,null,null,null,null,null,null,null,null,null,{"$f":"IF(P11=0,P18+P21,P11+P21)","v":0}]
[]
[null,null,null,null,null,null,null,null,"(optioneel) aanpassing seizoenspatroon, 0% is geen aanpassing"]
[null,"Gegarandeerde maandomzet van variabele omzet maart",null,null,null,null,null,null,null,null,null,0,null,null,null,{"$f":"IF(L26=0,$P$23*(1/12),$P$23*L26)","v":0}]
[null,"Gegarandeerde maandomzet van variabele omzet april",null,null,null,null,null,null,null,null,null,0,null,null,null,{"$f":"IF(L27=0,$P$23*(1/12),$P$23*L27)","v":0}]
[null,"Gegarandeerde maandomzet van variabele omzet mei",null,null,null,null,null,null,null,null,null,0,null,null,null,0]
[null,"Gegarandeerde maandomzet van variabele omzet juni",null,null,null,null,null,null,null,null,null,0,null,null,null,0]
[]
[null,"Indien er specifieke afspraken zijn ingevuld (veld P21) voor 2020, dan moet hieronder worden toegelicht hoe dit bedrag tot stand is gekomen."]
[]
[]
[null,"Indien een afwijkend seizoenspatroon wordt gehanteerd kan dat hieronder worden toegelicht."]
[]
[]
["3. Aanvullende afspraken verantwoording kosten versus financiering omzet"]
[null,"Momenteel niet van toepassing"]

{"sheet":"Berekening garantie","index":4,"n_rows":74,"n_cols":12,"rows_kept":74,"cut":false,"hidden":false,"merged":[[1,0,1,11]]}
[]
["Berekeningen voor garantieomzet over de maanden maart tot en met juni 2020"]
[null,"Geschikt voor inspannings- en outputgerichte bekostiging"]
["Versie",{"$f":"MAX(Versiebeheer[Versienr.])","v":0}]
["Datum",{"$f":"VLOOKUP(MAX(Versiebeheer[Versienr.]),Versiebeheer[#All],3)","v":{"$error":"#N/A"}}]
[]
["Berekening garantieomzet maart"]
[null,"Gegarandeerde maandomzet maart 2020 (conform tabblad \"Afspraken\")",null,null,null,null,null,null,null,null,null,{"$f":"Afsprakenblad!P26","v":0}]
[]
[null,"Declarabele variabele maandomzet maart 2020 (zie specificatie beneden)",null,null,null,null,null,null,null,null,null,{"$f":"Producten_maart[[#Totals],[Omzet]]","v":0}]
[]
[null,"Te factureren aanvullende garantieomzet maart 2020",null,null,null,null,null,null,null,null,null,{"$f":"IF(L8>L10,L8-L10,0)","v":0}]
[]
[null,"Verantwoording declarabele productie maart (inspannings- cq. outputberekening)"]
[null,"Productcode","Productomschrijving","Maand","Prijs","Aantal","Omzet"]
[null,null,null,"Maart",0,null,{"$f":"Producten_maart[[#This Row],[Prijs]]*Producten_maart[[#This Row],[Aantal]]","v":0}]
[null,null,null,null,null,null,{"$f":"SUBTOTAL(109,Producten_maart[Omzet])","v":0}]
[]
["Berekening garantieomzet april"]
[null,"Gegarandeerde maandomzet april 2020 (conform tabblad \"Afspraken\")",null,null,null,null,null,null,null,null,null,{"$f":"Afsprakenblad!P27","v":0}]
[]
[null,"Declarabele variabele maandomzet april 2020 (zie specificatie beneden)",null,null,null,null,null,null,null,null,null,{"$f":"SUMIF(Producten_april[Maand],\"April\",Producten_april[Omzet])","v":0}]
[]
[null,"Declarabele variabele maandomzet maart 2020 (zie specificatie beneden)",null,null,null,null,null,null,null,null,null,{"$f":"SUMIF(Producten_april[Maand],\"Maart\",Producten_april[Omzet])","v":0}]
[null,null,"Te crediteren voor eerder gefactureerde garantieomzet maart 2020",null,null,null,null,null,null,null,null,{"$f":"IF(L24<L12,L24,L12)","v":0}]
[]
[null,"Te factureren aanvullende garantieomzet april 2020",null,null,null,null,null,null,null,null,null,{"$f":"IF(L22<L20,L20-L22,0)","v":0}]
[null,"Te factureren aanvullende garantieomzet april 2020, verminderd met creditering eerdere gefactureerde garantieomzet",null,null,null,null,null,null,null,null,null,{"$f":"IF(L22<L20,L20-L22,0)-L25","v":0}]
[]
[null,"Verantwoording declarabele productie april (inspannings- cq. outputberekening)"]
[null,"Productcode","Productomschrijving","Maand","Prijs","Aantal","Omzet"]
[null,null,null,"April",0,null,{"$f":"Producten_april[[#This Row],[Prijs]]*Producten_april[[#This Row],[Aantal]]","v":0}]
[null,null,null,null,null,null,{"$f":"SUBTOTAL(109,Producten_april[Omzet])","v":0}]
[]
["Berekening garantieomzet mei"]
[null,"Gegarandeerde maandomzet mei 2020 (conform tabblad \"Afspraken\")",null,null,null,null,null,null,null,null,null,{"$f":"Afsprakenblad!P28","v":0}]
[]
[null,"Declarabele variabele maandomzet mei 2020 (zie specificatie beneden)",null,null,null,null,null,null,null,null,null,{"$f":"SUMIF(Producten_mei[Maand],\"Mei\",Producten_mei[Omzet])","v":0}]
[]
[null,"Declarabele variabele maandomzet april 2020 (zie specificatie beneden)",null,null,null,null,null,null,null,null,null,{"$f":"SUMIF(Producten_mei[Maand],\"April\",Producten_mei[Omzet])","v":0}]
[null,null,"Te crediteren voor eerder gefactureerde garantieomzet april 2020",null,null,null,null,null,null,null,null,{"$f":"IF(L40<L27,L40,L27)","v":0}]
[]
[null,"Declarabele variabele maandomzet maart 2020 (zie specificatie beneden)",null,null,null,null,null,null,null,null,null,{"$f":"SUMIF(Producten_mei[Maand],\"Maart\",Producten_mei[Omzet])","v":0}]
[null,null,"Te crediteren voor eerder gefactureerde garantieomzet maart 2020",null,null,null,null,null,null,null,null,{"$f":"IF(L43<L12-L25,L43,L12-L25)","v":0}]
[]
[null,"Te factureren aanvullende garantieomzet mei 2020",null,null,null,null,null,null,null,null,null,{"$f":"IF(L38<L36,L36-L38,0)","v":0}]
[null,"Te factureren aanvullende garantieomzet mei 2020, verminderd met creditering eerdere gefactureerde garantieomzet",null,null,null,null,null,null,null,null,null,{"$f":"IF(L38<L36,L36-L38,0)-L41-L44","v":0}]
[]
[null,"Verantwoording declarabele productie mei (inspannings- cq. outputberekening)"]
[null,"Productcode","Productomschrijving","Maand","Prijs","Aantal","Omzet"]
[null,null,null,"Mei",0,null,{"$f":"Producten_mei[[#This Row],[Prijs]]*Producten_mei[[#This Row],[Aantal]]","v":0}]
[null,null,null,null,null,null,{"$f":"SUBTOTAL(109,Producten_mei[Omzet])","v":0}]
[]
["Berekening garantieomzet juni"]
[null,"Gegarandeerde maandomzet juni 2020 (conform tabblad \"Afspraken\")",null,null,null,null,null,null,null,null,null,{"$f":"Afsprakenblad!P29","v":0}]
[]
[null,"Declarabele variabele maandomzet juni 2020 (zie specificatie beneden)",null,null,null,null,null,null,null,null,null,{"$f":"SUMIF(Producten_juni[Maand],\"Juni\",Producten_juni[Omzet])","v":0}]
[]
[null,"Declarabele variabele maandomzet mei 2020 (zie specificatie beneden)",null,null,null,null,null,null,null,null,null,{"$f":"SUMIF(Producten_juni[Maand],\"Mei\",Producten_juni[Omzet])","v":0}]
[null,null,"Te crediteren voor eerder gefactureerde garantieomzet mei 2020",null,null,null,null,null,null,null,null,{"$f":"IF(L59<L46,L59,L46)","v":0}]
[]
[null,"Declarabele variabele maandomzet april 2020 (zie specificatie beneden)",null,null,null,null,null,null,null,null,null,{"$f":"SUMIF(Producten_juni[Maand],\"April\",Producten_juni[Omzet])","v":0}]
[null,null,"Te crediteren voor eerder gefactureerde garantieomzet april 2020",null,null,null,null,null,null,null,null,{"$f":"IF(L62<L27-L41,L62,L27-L41)","v":0}]
[]
[null,"Declarabele variabele maandomzet maart 2020 (zie specificatie beneden)",null,null,null,null,null,null,null,null,null,{"$f":"SUMIF(Producten_juni[Maand],\"Maart\",Producten_juni[Omzet])","v":0}]
[null,null,"Te crediteren voor eerder gefactureerde garantieomzet maart 2020",null,null,null,null,null,null,null,null,{"$f":"IF(L65<L12-L25-L44,L65,L12-L25-L44)","v":0}]
[]
[null,"Te factureren aanvullende garantieomzet juni 2020",null,null,null,null,null,null,null,null,null,{"$f":"IF(L57<L55,L55-L57,0)","v":0}]
[null,"Te factureren aanvullende garantieomzet juni 2020, verminderd met creditering eerdere gefactureerde garantieomzet",null,null,null,null,null,null,null,null,null,{"$f":"IF(L57<L55,L55-L57,0)-L63-L60-L66","v":0}]
[]
[null,"Verantwoording declarabele productie juni (inspannings- cq. outputberekening)"]
[null,"Productcode","Productomschrijving","Maand","Prijs","Aantal","Omzet"]
[null,null,null,"Juni",0,null,{"$f":"Producten_juni[[#This Row],[Prijs]]*Producten_juni[[#This Row],[Aantal]]","v":0}]
[null,null,null,null,null,null,{"$f":"SUBTOTAL(109,Producten_juni[Omzet])","v":0}]

{"sheet":"Cumulatieven","index":5,"n_rows":23,"n_cols":7,"rows_kept":23,"cut":false,"hidden":false,"merged":[[7,2,7,5]]}
[]
["Cumulatieven van ingevoerde en berekende gegevens"]
[null,"Geschikt voor inspannings- en outputgerichte bekostiging"]
["Versie",{"$f":"MAX(Versiebeheer[Versienr.])","v":0}]
["Datum",{"$f":"VLOOKUP(MAX(Versiebeheer[Versienr.]),Versiebeheer[#All],3)","v":{"$error":"#N/A"}}]
[]
["1. Totaal gerealiseerde omzet"]
[null,null,"Maand waarin gefactureerd is"]
[null,null,"Maart","April","Mei","Juni","TOTAAL"]
[null,"Maart",{"$f":"SUMIF(Producten_maart[Maand],Cumulatieven!B10,Producten_maart[Omzet])","v":0},{"$f":"SUMIF(Producten_april[Maand],Cumulatieven!B10,Producten_april[Omzet])","v":0},{"$f":"SUMIF(Producten_mei[Maand],Cumulatieven!B10,Producten_mei[Omzet])","v":0},{"$f":"SUMIF(Producten_juni[Maand],Cumulatieven!B10,Producten_juni[Omzet])","v":0},{"$f":"SUM(C10:F10)","v":0}]
[null,"April",null,{"$f":"SUMIF(Producten_april[Maand],Cumulatieven!B11,Producten_april[Omzet])","v":0},{"$f":"SUMIF(Producten_mei[Maand],Cumulatieven!B11,Producten_mei[Omzet])","v":0},{"$f":"SUMIF(Producten_juni[Maand],Cumulatieven!B11,Producten_juni[Omzet])","v":0},{"$f":"SUM(C11:F11)","v":0}]
[null,"Mei",null,null,{"$f":"SUMIF(Producten_mei[Maand],Cumulatieven!B12,Producten_mei[Omzet])","v":0},{"$f":"SUMIF(Producten_juni[Maand],Cumulatieven!B12,Producten_juni[Omzet])","v":0},0]
[null,"Juni",null,null,null,{"$f":"SUMIF(Producten_juni[Maand],Cumulatieven!B13,Producten_juni[Omzet])","v":0},0]
[null,"TOTAAL",{"$f":"SUM(C10:C13)","v":0},{"$f":"SUM(D10:D13)","v":0},0,0,0]
[]
[]
["2. Gecalculeerde garantieomzet op maandbasis "]
[]
[null,"Maart",{"$f":"IF('Berekening garantie'!L8-Cumulatieven!G10>0,'Berekening garantie'!L8-Cumulatieven!G10,0)","v":0}]
[null,"April",{"$f":"IF('Berekening garantie'!L20-Cumulatieven!G11>0,'Berekening garantie'!L20-Cumulatieven!G11,0)","v":0}]
[null,"Mei",{"$f":"IF('Berekening garantie'!L36-Cumulatieven!G12>0,'Berekening garantie'!L36-Cumulatieven!G12,0)","v":0}]
[null,"Juni",{"$f":"IF('Berekening garantie'!L55-Cumulatieven!G13>0,'Berekening garantie'!L55-Cumulatieven!G13,0)","v":0}]
[null,"Totaal",{"$f":"SUM(C19:C22)","v":0}]